fUST/lending_fUST_20260515
["ID","MTS","AMOUNT","RATE_DAILY","PERIOD"]
[422281205,1778790641000,-504.399883,0.00010958,2]
[422281201,1778790641000,-131.34210167,0.00010958,2]
[422281203,1778790641000,-500.0,0.00010958,2]
[422281163,1778790641000,-500.0,0.00010958,2]
[422281197,1778790641000,-53.90802967,0.00010958,2]
[422281184,1778790641000,-2577.11,0.00010958,2]
[422281206,1778790641000,-500.0,0.00010958,2]
[422281195,1778790641000,-500.0,0.00010958,2]
[422281165,1778790641000,-500.0,0.00010958,2]
[422281167,1778790641000,-500.0,0.00010958,2]
[422281169,1778790641000,-744.23,0.00010958,2]
[422281168,1778790641000,-500.0,0.00010958,2]
[422281173,1778790641000,-726.34,0.00010958,2]
[422281175,1778790641000,-373.579258,0.00010958,2]
[422281174,1778790641000,-500.0,0.00010958,2]
[422281176,1778790641000,-500.0,0.00010958,2]
[422281166,1778790641000,-356.80942644,0.00010958,2]
[422281181,1778790641000,-1116.55,0.00010958,2]
[422281172,1778790641000,-575.80120612,0.00010958,2]
[422281185,1778790641000,-500.0,0.00010958,2]
[422281179,1778790641000,-500.0,0.00010958,2]
[422281183,1778790641000,-500.0,0.00010958,2]
[422281196,1778790641000,-446.09197033,0.00010958,2]
[422281182,1778790641000,-500.0,0.00010958,2]
[422281178,1778790641000,-500.0,0.00010958,2]
[422281177,1778790641000,-1275.92,0.00010958,2]
[422281180,1778790641000,-500.0,0.00010958,2]
[422281212,1778790642000,-500.0,0.00010958,2]
[422281207,1778790642000,-511.78,0.00010958,2]
[422281209,1778790642000,-500.0,0.00010958,2]
[422281211,1778790642000,-515.35,0.00010958,2]
[422281221,1778790642000,-543.87018602,0.00010958,2]
[422281215,1778790642000,-1135.72,0.00010958,2]
[422281214,1778790642000,-500.0,0.00010958,2]
[422281210,1778790642000,-534.06,0.00010958,2]
[422281222,1778790642000,-867.62,0.00010958,2]
[422281208,1778790642000,-500.0,0.00010958,2]
[422281213,1778790642000,-500.0,0.00010958,2]
[422281219,1778790642000,-500.0,0.00010958,2]
[422281216,1778790642000,-1596.68,0.00010958,2]
[422281226,1778790642000,-1260.4,0.00010958,2]
[422281227,1778790642000,-467.88746348,0.00010958,2]
[422281224,1778790642000,-500.0,0.00010958,2]
[422281225,1778790642000,-500.0,0.00010958,2]
[422281220,1778790642000,-529.51981398,0.00010958,2]
[422281218,1778790642000,-500.0,0.00010958,2]
[422281217,1778790642000,-521.53,0.00010958,2]
[422281223,1778790642000,-500.0,0.00010958,2]
[422281266,1778790647000,-500.0,0.00010958,2]
[422281260,1778790647000,-500.0,0.00010958,2]
[422281258,1778790647000,-500.0,0.00010958,2]
[422281257,1778790647000,-500.0,0.00010958,2]
[422281259,1778790647000,-500.0,0.00010958,2]
[422281255,1778790647000,-500.0,0.00010958,2]
[422281267,1778790647000,-500.0,0.00010958,2]
[422281256,1778790647000,-500.0,0.00010958,2]
[422281252,1778790647000,-500.0,0.00010958,2]
[422281251,1778790647000,-500.0,0.00010958,2]
[422281253,1778790647000,-500.0,0.00010958,2]
[422281254,1778790647000,-500.0,0.00010958,2]
[422281248,1778790647000,-500.0,0.00010958,2]
[422281246,1778790647000,-500.0,0.00010958,2]
[422281249,1778790647000,-500.0,0.00010958,2]
[422281247,1778790647000,-500.0,0.00010958,2]
[422281245,1778790647000,-32.11253652,0.00010958,2]
[422281261,1778790647000,-500.0,0.00010958,2]
[422281265,1778790647000,-500.0,0.00010958,2]
[422281250,1778790647000,-2815.2,0.00010958,2]
[422281262,1778790647000,-500.0,0.00010958,2]
[422281284,1778790647000,-2375.27713048,0.00010958,2]
[422281283,1778790647000,-212.20967769,0.00010958,2]
[422281282,1778790647000,-287.79032231,0.00010958,2]
[422281280,1778790647000,-500.0,0.00010958,2]
[422281281,1778790647000,-500.0,0.00010958,2]
[422281272,1778790647000,-500.0,0.00010958,2]
[422281275,1778790647000,-587.37,0.00010958,2]
[422281276,1778790647000,-500.0,0.00010958,2]
[422281278,1778790647000,-500.0,0.00010958,2]
[422281270,1778790647000,-500.0,0.00010958,2]
[422281268,1778790647000,-500.0,0.00010958,2]
[422281273,1778790647000,-500.0,0.00010958,2]
[422281279,1778790647000,-500.0,0.00010958,2]
[422281277,1778790647000,-500.0,0.00010958,2]
[422281274,1778790647000,-500.0,0.00010958,2]
[422281269,1778790647000,-500.0,0.00010958,2]
[422281264,1778790647000,-500.0,0.00010958,2]
[422281271,1778790647000,-500.0,0.00010958,2]
[422281263,1778790647000,-500.0,0.00010958,2]
[422281285,1778790648000,152.0,6.289e-05,7]
[422281311,1778791527000,161.8187031,4.545e-05,2]
[422281400,1778791832000,-302.63096542,7.081e-05,2]
[422281410,1778791832000,-1255.87196658,9.984e-05,2]
[422281408,1778791832000,-1338.81099704,9.977e-05,2]
[422281398,1778791832000,-152.0,6.289e-05,7]
[422281406,1778791832000,-7662.83397096,9.89e-05,2]
[422281404,1778791832000,-300.0,9.889e-05,2]
[422281402,1778791832000,-5000.0,7.872e-05,2]
[422281464,1778791839000,-26133.16630541,9.984e-05,2]
[422281463,1778791839000,-4692.05095865,9.984e-05,2]
[422281462,1778791839000,-357.10453919,9.081e-05,2]
[422281471,1778791841000,-4865.12127409,8.99e-05,2]
[422281481,1778791844000,-134.87872591,8.99e-05,2]
[422281482,1778791844000,-1076.66116041,9.984e-05,2]
[422281486,1778791847000,-776.39520267,9.984e-05,2]
[422281487,1778791847000,-9718.08673552,9.984e-05,2]
[422281552,1778793032000,-939.96270384,9.874e-05,2]
[422281550,1778793032000,-5000.0,9.304e-05,2]
[422281551,1778793032000,-289.43625533,9.602e-05,2]
[422281554,1778793032000,-657.88312418,9.89e-05,2]
[422281553,1778793032000,-300.0,9.889e-05,2]
[422281559,1778793032000,-1720.96176952,9.89e-05,2]
[422281558,1778793032000,-704.47238177,9.89e-05,2]
[422281556,1778793032000,-269.49268348,9.89e-05,2]
[422281555,1778793032000,-2628.90096422,9.89e-05,2]
[422281560,1778793032000,-2040.50387463,9.89e-05,2]
[422281557,1778793032000,-1077.9707339,9.89e-05,2]
[422281561,1778793033000,-1036.69568593,9.89e-05,2]
[422281666,1778793039000,-467.1023814,0.00010299,2]
[422281660,1778793039000,-500.0,0.00010299,2]
[422281661,1778793039000,-500.0,0.00010299,2]
[422281664,1778793039000,-500.0,0.00010299,2]
[422281655,1778793039000,-500.0,0.00010299,2]
[422281651,1778793039000,-163.7375505,0.00010299,2]
[422281653,1778793039000,-500.0,0.00010299,2]
[422281649,1778793039000,-511.03098494,0.00010299,2]
[422281647,1778793039000,-500.0,0.00010299,2]
[422281657,1778793039000,-500.0,0.00010299,2]
[422281668,1778793039000,-500.0,0.00010299,2]
[422281672,1778793039000,-500.0,0.00010299,2]
[422281674,1778793039000,-500.0,0.00010299,2]
[422281676,1778793039000,-500.0,0.00010299,2]
[422281683,1778793039000,-500.0,0.00010299,2]
[422281685,1778793039000,-500.0,0.00010299,2]
[422281688,1778793039000,-500.0,0.00010299,2]
[422281690,1778793039000,-500.0,0.00010299,2]
[422281692,1778793039000,-500.0,0.00010299,2]
[422281694,1778793039000,-500.0,0.00010299,2]
[422281645,1778793039000,-500.0,0.00010299,2]
[422281696,1778793039000,-500.0,0.00010299,2]
[422281708,1778793039000,-500.0,0.00010299,2]
[422281670,1778793039000,-500.0,0.00010299,2]
[422281643,1778793039000,-500.0,0.00010299,2]
[422281592,1778793039000,-2980.03058599,9.89e-05,2]
[422281639,1778793039000,-500.0,0.00010299,2]
[422281700,1778793039000,-500.0,0.00010299,2]
[422281587,1778793039000,-1234.68337506,9.89e-05,2]
[422281589,1778793039000,-3757.28650091,9.89e-05,2]
[422281594,1778793039000,-9692.03486854,9.89e-05,2]
[422281596,1778793039000,-160.0,9.987e-05,2]
[422281597,1778793039000,-3145.1429773,9.995e-05,2]
[422281599,1778793039000,-1495.44440711,0.0001,2]
[422281611,1778793039000,-1619.5264345,0.00010077,2]
[422281601,1778793039000,-1034.0570311,0.0001,2]
[422281608,1778793039000,-3466.50906577,0.00010077,2]
[422281606,1778793039000,-10209.98579081,0.00010077,2]
[422281641,1778793039000,-500.0,0.00010299,2]
[422281603,1778793039000,-13447.71965054,0.00010077,2]
[422281615,1778793039000,-1495.44440711,0.000101,2]
[422281619,1778793039000,-151.0,0.0001015,2]
[422281617,1778793039000,-1034.0570311,0.000101,2]
[422281623,1778793039000,-1495.44440711,0.000102,2]
[422281625,1778793039000,-1034.0570311,0.000102,2]
[422281627,1778793039000,-4217.48619329,0.00010277,2]
[422281629,1778793039000,-500.0,0.00010299,2]
[422281631,1778793039000,-647.48195958,0.00010299,2]
[422281633,1778793039000,-500.0,0.00010299,2]
[422281635,1778793039000,-500.0,0.00010299,2]
[422281637,1778793039000,-500.0,0.00010299,2]
[422281613,1778793039000,-2666.01423702,0.00010077,2]
[422281698,1778793039000,-500.0,0.00010299,2]
[422281621,1778793039000,-3993.217477,0.00010177,2]
[422281705,1778793039000,-500.0,0.00010299,2]
[422281768,1778793039000,-500.0,0.00010299,2]
[422281767,1778793039000,-500.0,0.00010299,2]
[422281769,1778793039000,-500.0,0.00010299,2]
[422281771,1778793039000,-500.0,0.00010299,2]
[422281774,1778793039000,-217.40107505,0.00010299,2]
[422281773,1778793039000,-500.0,0.00010299,2]
[422281770,1778793039000,-500.0,0.00010299,2]
[422281805,1778793039000,-746.05381817,0.0001041,2]
[422281772,1778793039000,-500.0,0.00010299,2]
[422281776,1778793039000,-500.0,0.00010299,2]
[422281778,1778793039000,-500.0,0.00010299,2]
[422281766,1778793039000,-500.0,0.00010299,2]
[422281782,1778793039000,-500.0,0.00010299,2]
[422281786,1778793039000,-500.0,0.00010299,2]
[422281788,1778793039000,-500.0,0.00010299,2]
[422281793,1778793039000,-1034.0570311,0.000103,2]
[422281789,1778793039000,-500.0,0.00010299,2]
[422281799,1778793039000,-1495.44440711,0.000104,2]
[422281797,1778793039000,-5029.0904094,0.00010377,2]
[422281795,1778793039000,-1648.85303417,0.00010341,2]
[422281792,1778793039000,-1495.44440711,0.000103,2]
[422281801,1778793039000,-1034.0570311,0.000104,2]
[422281803,1778793039000,-186.7001547,0.0001041,2]
[422281706,1778793039000,-500.0,0.00010299,2]
[422281784,1778793039000,-500.0,0.00010299,2]
[422281761,1778793039000,-500.0,0.00010299,2]
[422281780,1778793039000,-500.0,0.00010299,2]
[422281755,1778793039000,-500.0,0.00010299,2]
[422281763,1778793039000,-500.0,0.00010299,2]
[422281702,1778793039000,-196.01566943,0.00010299,2]
[422281710,1778793039000,-500.0,0.00010299,2]
[422281712,1778793039000,-500.0,0.00010299,2]
[422281714,1778793039000,-500.0,0.00010299,2]
[422281716,1778793039000,-500.0,0.00010299,2]
[422281718,1778793039000,-500.0,0.00010299,2]
[422281734,1778793039000,-500.0,0.00010299,2]
[422281723,1778793039000,-500.0,0.00010299,2]
[422281720,1778793039000,-500.0,0.00010299,2]
[422281729,1778793039000,-500.0,0.00010299,2]
[422281724,1778793039000,-500.0,0.00010299,2]
[422281732,1778793039000,-500.0,0.00010299,2]
[422281759,1778793039000,-500.0,0.00010299,2]
[422281730,1778793039000,-500.0,0.00010299,2]
[422281737,1778793039000,-500.0,0.00010299,2]
[422281739,1778793039000,-500.0,0.00010299,2]
[422281741,1778793039000,-500.0,0.00010299,2]
[422281743,1778793039000,-500.0,0.00010299,2]
[422281744,1778793039000,-500.0,0.00010299,2]
[422281757,1778793039000,-500.0,0.00010299,2]
[422281749,1778793039000,-500.0,0.00010299,2]
[422281746,1778793039000,-500.0,0.00010299,2]
[422281751,1778793039000,-258.44685519,0.00010299,2]
[422281726,1778793039000,-500.0,0.00010299,2]
[422281753,1778793039000,-500.0,0.00010299,2]
[422281885,1778793040000,-500.0,0.00010955,2]
[422281896,1778793040000,-500.0,0.00010955,2]
[422281864,1778793040000,-1495.44440711,0.000109,2]
[422281898,1778793040000,-500.0,0.00010955,2]
[422281883,1778793040000,-500.0,0.00010955,2]
[422281879,1778793040000,-500.0,0.00010955,2]
[422281869,1778793040000,-500.0,0.00010955,2]
[422281877,1778793040000,-500.0,0.00010955,2]
[422281875,1778793040000,-500.0,0.00010955,2]
[422281871,1778793040000,-500.0,0.00010955,2]
[422281873,1778793040000,-500.0,0.00010955,2]
[422281889,1778793040000,-500.0,0.00010955,2]
[422281881,1778793040000,-500.0,0.00010955,2]
[422281887,1778793040000,-500.0,0.00010955,2]
[422281919,1778793040000,-590.0,0.00010958,2]
[422281891,1778793040000,-500.0,0.00010955,2]
[422281892,1778793040000,-500.0,0.00010955,2]
[422281900,1778793040000,-500.0,0.00010955,2]
[422281902,1778793040000,-500.0,0.00010955,2]
[422281906,1778793040000,-500.0,0.00010955,2]
[422281903,1778793040000,-473.4313349,0.00010955,2]
[422281907,1778793040000,-500.0,0.00010955,2]
[422281911,1778793040000,-49619.0,0.00010956,2]
[422281910,1778793040000,-381.40193443,0.00010955,2]
[422281917,1778793040000,-1581.5100578,0.00010958,2]
[422281913,1778793040000,-2836.5305,0.00010958,2]
[422281921,1778793040000,-500.0,0.00010958,2]
[422281865,1778793040000,-693.3919763,0.00010945,2]
[422281894,1778793040000,-500.0,0.00010955,2]
[422281867,1778793040000,-553.81608882,0.00010955,2]
[422281811,1778793040000,-537.6845,0.0001056,2]
[422281860,1778793040000,-420.0,0.00010877,2]
[422281807,1778793040000,-5320.42071698,0.00010477,2]
[422281809,1778793040000,-1495.44440711,0.000105,2]
[422281822,1778793040000,-218.758,0.00010651,2]
[422281925,1778793040000,-500.0,0.00010958,2]
[422281824,1778793040000,-154.66,0.00010651,2]
[422281812,1778793040000,-5840.69462563,0.00010577,2]
[422281820,1778793040000,-189.74118105,0.00010617,2]
[422281814,1778793040000,-1495.44440711,0.000106,2]
[422281816,1778793040000,-557.5788265,0.00010615,2]
[422281818,1778793040000,-363.578,0.00010617,2]
[422281828,1778793040000,-647.0,0.00010651,2]
[422281826,1778793040000,-1412.0,0.00010651,2]
[422281829,1778793040000,-2202.0,0.00010651,2]
[422281862,1778793040000,-668.65185757,0.0001089,2]
[422281831,1778793040000,-443.0,0.00010651,2]
[422281847,1778793040000,-6652.29884187,0.00010777,2]
[422281839,1778793040000,-6647.62395696,0.00010677,2]
[422281849,1778793040000,-621.78829552,0.0001078,2]
[422281837,1778793040000,-578.20924308,0.0001067,2]
[422281835,1778793040000,-185.0,0.00010651,2]
[422281843,1778793040000,-1495.44440711,0.000107,2]
[422281841,1778793040000,-500.0,0.00010692,2]
[422281845,1778793040000,-599.60298507,0.00010725,2]
[422281850,1778793040000,-161.64793294,0.00010796,2]
[422281856,1778793040000,-644.79446246,0.00010835,2]
[422281853,1778793040000,-160.0,0.00010798,2]
[422281858,1778793040000,-7463.9030581,0.00010877,2]
[422281854,1778793040000,-1495.44440711,0.000108,2]
[422281833,1778793040000,-741.0,0.00010651,2]
[422281929,1778793040000,-500.0,0.00010958,2]
[422281915,1778793040000,-373.579259,0.00010958,2]
[422281927,1778793040000,-500.0,0.00010958,2]
[422281997,1778793040000,-500.0,0.00010958,2]
[422281991,1778793040000,-500.0,0.00010958,2]
[422281995,1778793040000,-500.0,0.00010958,2]
[422281993,1778793040000,-1005.62,0.00010958,2]
[422282007,1778793040000,-500.0,0.00010958,2]
[422282008,1778793040000,-500.58295105,0.00010958,2]
[422282004,1778793040000,-500.0,0.00010958,2]
[422282010,1778793040000,-500.0,0.00010958,2]
[422282022,1778793040000,-619.7,0.00010958,2]
[422282012,1778793040000,-500.0,0.00010958,2]
[422282024,1778793040000,-500.0,0.00010958,2]
[422282018,1778793040000,-360.42,0.00010958,2]
[422282016,1778793040000,-500.0,0.00010958,2]
[422282020,1778793040000,-500.0,0.00010958,2]
[422282027,1778793040000,-500.0,0.00010958,2]
[422282029,1778793040000,-500.0,0.00010958,2]
[422282031,1778793040000,-500.0,0.00010958,2]
[422282032,1778793040000,-500.0,0.00010958,2]
[422282038,1778793040000,-500.0,0.00010958,2]
[422282037,1778793040000,-500.0,0.00010958,2]
[422282046,1778793040000,-500.0,0.00010958,2]
[422282041,1778793040000,-500.0,0.00010958,2]
[422282044,1778793040000,-500.0,0.00010958,2]
[422282042,1778793040000,-6342.864067,0.00010958,2]
[422282035,1778793040000,-500.0,0.00010958,2]
[422282050,1778793040000,-500.0,0.00010958,2]
[422282048,1778793040000,-500.0,0.00010958,2]
[422281931,1778793040000,-500.0,0.00010958,2]
[422282052,1778793040000,-500.0,0.00010958,2]
[422282003,1778793040000,-500.0,0.00010958,2]
[422282001,1778793040000,-500.84376532,0.00010958,2]
[422282014,1778793040000,-500.0,0.00010958,2]
[422281999,1778793040000,-500.0,0.00010958,2]
[422281923,1778793040000,-841.691,0.00010958,2]
[422281989,1778793040000,-500.0,0.00010958,2]
[422281948,1778793040000,-500.0,0.00010958,2]
[422281944,1778793040000,-500.0,0.00010958,2]
[422281946,1778793040000,-500.0,0.00010958,2]
[422281936,1778793040000,-500.0,0.00010958,2]
[422281938,1778793040000,-500.0,0.00010958,2]
[422281940,1778793040000,-506.10471685,0.00010958,2]
[422281942,1778793040000,-500.0,0.00010958,2]
[422281950,1778793040000,-500.0,0.00010958,2]
[422281954,1778793040000,-500.0,0.00010958,2]
[422281952,1778793040000,-500.0,0.00010958,2]
[422281956,1778793040000,-500.0,0.00010958,2]
[422281958,1778793040000,-611.94,0.00010958,2]
[422281972,1778793040000,-500.0,0.00010958,2]
[422281933,1778793040000,-1332.82,0.00010958,2]
[422281962,1778793040000,-607.69,0.00010958,2]
[422281960,1778793040000,-500.0,0.00010958,2]
[422281987,1778793040000,-500.0,0.00010958,2]
[422281981,1778793040000,-500.0,0.00010958,2]
[422281983,1778793040000,-500.0,0.00010958,2]
[422281979,1778793040000,-500.0,0.00010958,2]
[422281978,1778793040000,-500.0,0.00010958,2]
[422281985,1778793040000,-500.0,0.00010958,2]
[422281968,1778793040000,-500.0,0.00010958,2]
[422281966,1778793040000,-500.0,0.00010958,2]
[422281964,1778793040000,-500.0,0.00010958,2]
[422281976,1778793040000,-500.0,0.00010958,2]
[422281974,1778793040000,-500.0,0.00010958,2]
[422281970,1778793040000,-500.0,0.00010958,2]
[422282135,1778793041000,-581.64345213,0.00010958,2]
[422282148,1778793041000,-500.0,0.00010958,2]
[422282147,1778793041000,-500.0,0.00010958,2]
[422282132,1778793041000,-500.0,0.00010958,2]
[422282118,1778793041000,-500.0,0.00010958,2]
[422282133,1778793041000,-500.0,0.00010958,2]
[422282120,1778793041000,-500.0,0.00010958,2]
[422282128,1778793041000,-500.37730503,0.00010958,2]
[422282112,1778793041000,-500.0,0.00010958,2]
[422282114,1778793041000,-500.0,0.00010958,2]
[422282152,1778793041000,-500.0,0.00010958,2]
[422282116,1778793041000,-500.0,0.00010958,2]
[422282130,1778793041000,-500.0,0.00010958,2]
[422282137,1778793041000,-500.0,0.00010958,2]
[422282159,1778793041000,-889.2,0.00010958,2]
[422282150,1778793041000,-500.0,0.00010958,2]
[422282143,1778793041000,-301.57168527,0.00010958,2]
[422282141,1778793041000,-500.0,0.00010958,2]
[422282145,1778793041000,-500.0,0.00010958,2]
[422282157,1778793041000,-500.0,0.00010958,2]
[422282169,1778793041000,-500.0,0.00010958,2]
[422282161,1778793041000,-500.0,0.00010958,2]
[422282175,1778793041000,-500.0,0.00010958,2]
[422282163,1778793041000,-500.0,0.00010958,2]
[422282171,1778793041000,-1633.15,0.00010958,2]
[422282167,1778793041000,-500.0,0.00010958,2]
[422282173,1778793041000,-502.42204984,0.00010958,2]
[422282124,1778793041000,-500.0,0.00010958,2]
[422282139,1778793041000,-500.0,0.00010958,2]
[422282110,1778793041000,-500.0,0.00010958,2]
[422282054,1778793041000,-500.0,0.00010958,2]
[422282122,1778793041000,-500.0,0.00010958,2]
[422282165,1778793041000,-500.0,0.00010958,2]
[422282058,1778793041000,-500.0,0.00010958,2]
[422282056,1778793041000,-500.0,0.00010958,2]
[422282074,1778793041000,-151.0,0.00010958,2]
[422282072,1778793041000,-151.0,0.00010958,2]
[422282062,1778793041000,-500.0,0.00010958,2]
[422282064,1778793041000,-241.44513646,0.00010958,2]
[422282060,1778793041000,-500.0,0.00010958,2]
[422282076,1778793041000,-151.0,0.00010958,2]
[422282068,1778793041000,-500.0,0.00010958,2]
[422282066,1778793041000,-500.0,0.00010958,2]
[422282070,1778793041000,-979.97,0.00010958,2]
[422282078,1778793041000,-500.0,0.00010958,2]
[422282082,1778793041000,-500.94770213,0.00010958,2]
[422282080,1778793041000,-163.349913,0.00010958,2]
[422282084,1778793041000,-500.0,0.00010958,2]
[422282086,1778793041000,-500.0,0.00010958,2]
[422282097,1778793041000,-500.0,0.00010958,2]
[422282099,1778793041000,-500.0,0.00010958,2]
[422282101,1778793041000,-500.0,0.00010958,2]
[422282088,1778793041000,-500.0,0.00010958,2]
[422282090,1778793041000,-500.0,0.00010958,2]
[422282093,1778793041000,-500.0,0.00010958,2]
[422282091,1778793041000,-378.30954887,0.00010958,2]
[422282095,1778793041000,-500.0,0.00010958,2]
[422282103,1778793041000,-500.0,0.00010958,2]
[422282105,1778793041000,-500.0,0.00010958,2]
[422282109,1778793041000,-500.0,0.00010958,2]
[422282107,1778793041000,-500.0,0.00010958,2]
[422282126,1778793041000,-500.0,0.00010958,2]
[422282177,1778793041000,-500.0,0.00010958,2]
[422282303,1778793041000,-500.0,0.00010958,2]
[422282183,1778793041000,-500.0,0.00010958,2]
[422282248,1778793041000,-500.0,0.00010958,2]
[422282250,1778793041000,-1188.42,0.00010958,2]
[422282254,1778793041000,-500.0,0.00010958,2]
[422282252,1778793041000,-500.0,0.00010958,2]
[422282256,1778793041000,-3010.81,0.00010958,2]
[422282258,1778793041000,-500.0,0.00010958,2]
[422282260,1778793041000,-500.0,0.00010958,2]
[422282262,1778793041000,-500.0,0.00010958,2]
[422282273,1778793041000,-531.7,0.00010958,2]
[422282275,1778793041000,-500.0,0.00010958,2]
[422282266,1778793041000,-500.0,0.00010958,2]
[422282264,1778793041000,-500.0,0.00010958,2]
[422282268,1778793041000,-500.0,0.00010958,2]
[422282277,1778793041000,-500.0,0.00010958,2]
[422282272,1778793041000,-500.0,0.00010958,2]
[422282279,1778793041000,-500.0,0.00010958,2]
[422282270,1778793041000,-1524.07,0.00010958,2]
[422282281,1778793041000,-362.56264057,0.00010958,2]
[422282283,1778793041000,-500.0,0.00010958,2]
[422282285,1778793041000,-500.0,0.00010958,2]
[422282287,1778793041000,-581.44192,0.00010958,2]
[422282289,1778793041000,-500.0,0.00010958,2]
[422282293,1778793041000,-500.0,0.00010958,2]
[422282291,1778793041000,-548.5013605,0.00010958,2]
[422282295,1778793041000,-500.0,0.00010958,2]
[422282299,1778793041000,-500.0,0.00010958,2]
[422282179,1778793041000,-500.0,0.00010958,2]
[422282301,1778793041000,-812.9,0.00010958,2]
[422282305,1778793041000,-500.0,0.00010958,2]
[422282244,1778793041000,-500.0,0.00010958,2]
[422282242,1778793041000,-500.0,0.00010958,2]
[422282297,1778793041000,-500.0,0.00010958,2]
[422282238,1778793041000,-500.0,0.00010958,2]
[422282240,1778793041000,-433.52203327,0.00010958,2]
[422282185,1778793041000,-562.2,0.00010958,2]
[422282187,1778793041000,-500.0,0.00010958,2]
[422282197,1778793041000,-500.0,0.00010958,2]
[422282191,1778793041000,-599.76871918,0.00010958,2]
[422282189,1778793041000,-182.09122185,0.00010958,2]
[422282193,1778793041000,-500.0,0.00010958,2]
[422282199,1778793041000,-500.0,0.00010958,2]
[422282194,1778793041000,-500.0,0.00010958,2]
[422282201,1778793041000,-500.0,0.00010958,2]
[422282203,1778793041000,-500.0,0.00010958,2]
[422282207,1778793041000,-1019.19,0.00010958,2]
[422282205,1778793041000,-1106.41,0.00010958,2]
[422282208,1778793041000,-500.0,0.00010958,2]
[422282181,1778793041000,-500.0,0.00010958,2]
[422282222,1778793041000,-580.94,0.00010958,2]
[422282210,1778793041000,-500.0,0.00010958,2]
[422282236,1778793041000,-500.0,0.00010958,2]
[422282234,1778793041000,-976.31,0.00010958,2]
[422282232,1778793041000,-500.0,0.00010958,2]
[422282230,1778793041000,-500.0,0.00010958,2]
[422282228,1778793041000,-500.0,0.00010958,2]
[422282246,1778793041000,-500.0,0.00010958,2]
[422282218,1778793041000,-405.93304896,0.00010958,2]
[422282224,1778793041000,-500.0,0.00010958,2]
[422282214,1778793041000,-500.0,0.00010958,2]
[422282212,1778793041000,-614.38,0.00010958,2]
[422282216,1778793041000,-500.0,0.00010958,2]
[422282226,1778793041000,-500.0,0.00010958,2]
[422282220,1778793041000,-500.0,0.00010958,2]
[422282381,1778793042000,-500.0,0.00010958,2]
[422282378,1778793042000,-500.0,0.00010958,2]
[422282379,1778793042000,-2469.73,0.00010958,2]
[422282372,1778793042000,-500.0,0.00010958,2]
[422282368,1778793042000,-500.0,0.00010958,2]
[422282370,1778793042000,-500.0,0.00010958,2]
[422282375,1778793042000,-500.0,0.00010958,2]
[422282365,1778793042000,-500.0,0.00010958,2]
[422282377,1778793042000,-566.91,0.00010958,2]
[422282380,1778793042000,-772.4,0.00010958,2]
[422282374,1778793042000,-500.0,0.00010958,2]
[422282367,1778793042000,-593.13,0.00010958,2]
[422282389,1778793042000,-500.0,0.00010958,2]
[422282384,1778793042000,-500.0,0.00010958,2]
[422282383,1778793042000,-1347.73,0.00010958,2]
[422282385,1778793042000,-500.0,0.00010958,2]
[422282388,1778793042000,-500.0,0.00010958,2]
[422282387,1778793042000,-500.0,0.00010958,2]
[422282386,1778793042000,-500.0,0.00010958,2]